Cogmind - Beta 11.1 @@@ ROGUE MODE // 2022.06.17 @ 10:20:32 Player: btmk16 Result: Destroyed by G-67 Veteran with Field Laser Performance ------------- Evolutions (6) 3000 Regions Visited (10) 2000 Robots Destroyed (168) 840 Value Destroyed (4315) 4315 Prototype IDs (25) 500 Alien Tech Used (0) 0 Bonus (2268) 2268 TOTAL SCORE: 12923 Bonus ------- High Alert Combat Kills 508 Follower Combat Kills 1760 Cogmind --------- Core Integrity 0/1150 Matter 169/300 Energy 99/100 System Corruption 7% Temperature Cool (0) Movement Core (50) Location -4/Factory Parts ------- > --- POWER (1) -------- (None) > --- PROPULSION (6) --- Gyrokinetic Inverter Gyrokinetic Inverter > --- UTILITY (9) ------ Advanced Visual Processing Unit Transport Network Coupler Melee Analysis Suite Improved Melee Analysis Suite > --- WEAPON (3) ------- (None) > --- INVENTORY (5) ---- Thief Drone Bay (3/3) Mini Smartbomb Launcher Mini Smartbomb Launcher Powered Hammer Peak State ------------ > --- POWER ------------ Micro Fission Core > --- PROPULSION ------- Compact Wheel Compact Wheel Centrium Wheel Antigrav System Antigrav System Antigrav System > --- UTILITY ---------- Large Storage Unit Advanced Visual Processing Unit Transport Network Coupler Melee Analysis Suite Advanced Transmission Jammer Improved Corruption Screen > --- WEAPON ----------- Matter Neutralizer Mini Smartbomb Launcher Power Sword > --- INVENTORY -------- Advanced Heat Sink Cooling System Experimental Sensor Array Improved Signal Interpreter Experimental Targeting Computer Transmission Jammer Improved Hacking Suite Authchip [R/Combat] Long-range Tractor Beam Thief Drone Bay Mini Smartbomb Launcher Mini Smartbomb Launcher Mini Smartbomb Launcher Mini Smartbomb Launcher Powered Hammer [Rating: 81] Favorites ----------- Power Improved Ion Engine Engine Improved Ion Engine Power Core Micro Fission Core Propulsion Aluminum Leg Treads Improved Treads Leg Aluminum Leg Wheel Wheel Hover Unit Gyrokinetic Inverter Flight Unit Cesium-ion Thruster Utility Medium Storage Unit Device Structural Scanner Storage Medium Storage Unit Processor Improved Melee Analysis Suite Protection Layered Light Armor Plating Weapon Powered Hammer Energy Gun Pulse Rifle Energy Cannon Matter Neutralizer Ballistic Gun Assault Rifle Ballistic Cannon Gauss Cannon Launcher Mini Smartbomb Launcher Special Weapon Plasma Cutter Impact Weapon Powered Hammer Slashing Weapon Scythe Special Melee Weapon Improved Datajack Build | -11 -10 -10 -10 -9 -8 -7 -7 -7 -5 -4 ------- Run | Scr Mat Min Exi Min Mat Fac Sto Rec Fac Fac Slots Evolved 12 | . . . . . 4 2 . . 4 2 Power . | . . . . . . . . . . . Propulsion 4 | . . . . . 2 . . . . 2 Utility 7 | . . . . . 2 1 . . 4 . Weapon 1 | . . . . . . 1 . . . . Parts Attached 196 | . 23 11 3 4 61 11 41 5 15 22 Power 19 | . 3 1 . . 6 2 4 . 1 2 Engine 12 | . 3 1 . . 4 1 3 . . . Core 7 | . . . . . 2 1 1 . 1 2 Reactor . | . . . . . . . . . . . Propulsion 81 | . 8 4 . 1 29 1 19 1 5 13 Treads 3 | . 1 . . . . . 1 . 1 . Leg 42 | . 7 . . . 15 1 15 1 3 . Wheel 24 | . . 4 . 1 11 . 3 . . 5 Hover 9 | . . . . . . . . . 1 8 Flight 3 | . . . . . 3 . . . . . Utility 49 | . 6 1 . 3 13 5 10 1 6 4 Device 25 | . 4 . . 3 8 2 3 1 3 1 Storage 2 | . 1 . . . . 1 . . . . Processor 7 | . . . . . 1 1 1 . 2 2 Hackware . | . . . . . . . . . . . Protection 15 | . 1 1 . . 4 1 6 . 1 1 Artifact . | . . . . . . . . . . . Weapon 47 | . 6 5 3 . 13 3 8 3 3 3 Energy Gun 9 | . 2 1 1 . 4 . 1 . . . Energy Cannon 1 | . . . . . . . . . . 1 Ballistic Gun 15 | . 4 4 1 . 5 . . . 1 . Ballistic Cannon 2 | . . . . . 2 . . . . . Launcher 3 | . . . . . 1 . . . . 2 Special Weapon 1 | . . . . . . . 1 . . . Impact Weapon 10 | . . . . . . 2 4 3 1 . Slashing Weapon 4 | . . . . . . 1 2 . 1 . Piercing Weapon . | . . . . . . . . . . . Special Melee Weapon 2 | . . . 1 . 1 . . . . . Unidentified Prototypes 8 | . . . . 1 3 1 1 . . 2 Corrupted Parts 6 | . . . . . . . 3 . 3 . System Corruption 41 | . . . . . . . 25 . 16 . Parts Lost 68 | . 3 4 . . 12 1 12 . 21 15 Power 8 | . . 1 . . 4 . . . 2 1 Propulsion 33 | . 1 1 . . 4 1 9 . 9 8 Utility 16 | . 1 1 . . 2 . 3 . 6 3 Weapon 11 | . 1 1 . . 2 . . . 4 3 Highest Loss Streak 9 | . 2 4 . . 7 1 7 . 9 7 To Critical Strikes . | . . . . . . . . . . . Average Slot Usage (%) 90 | . 93 96 90 100 96 96 92 95 72 51 Engine 8 | . 14 14 14 14 7 2 6 7 2 . Core 1 | . . . . . . 4 . . 1 4 Leg 19 | . 27 19 . . 23 27 24 30 9 . Wheel 6 | . . 6 28 28 10 . 1 . . 5 Device 8 | . 6 . . 6 13 14 11 7 6 4 Storage 9 | . 14 14 14 14 9 7 7 7 5 3 Processor 6 | . . . . . 5 7 7 15 17 16 Protection 6 | . 1 13 14 7 7 7 7 7 4 . Energy Gun 2 | . 3 . 1 14 3 . . . . . Ballistic Gun 9 | . 24 26 5 14 9 . . . 2 . Ballistic Cannon 1 | . . . . . 4 12 . . . . Impact Weapon 4 | . . . . . . 8 13 10 9 3 Slashing Weapon 1 | . . . . . . 1 6 7 . 4 Naked Turns . | . . . . . . . . . . . Heaviest Build 54 | 14 24 25 22 22 37 54 53 43 47 43 Greatest Support 74 | 20 20 20 20 20 55 62 74 47 47 68 Greatest Overweight (x) 12 | . 1 1 1 1 2 1 4 . 12 10 Average Overweight (x) . | . . . . 1 . . . . . 1 Largest Inventory Capacity 15 | . 10 10 10 10 10 15 15 15 15 15 Average Capacity 11 | . 9 10 10 10 10 11 15 15 15 12 Most Carried 15 | . 10 10 10 10 10 15 15 15 15 15 Average Carried 11 | . 9 9 9 9 9 10 14 15 13 11 Final Capacity 15 | 8 10 10 10 10 10 15 15 15 15 5 Final Carried 15 | 6 10 10 9 10 10 15 15 15 15 4 Class Distribution -------------------- 44% | Mutant 43% | Scavenger-Mutant 12% | Commander-Mutant Dominant Class ---------------- Mutant | -10/Materials Mutant | -10/Mines Mutant | -10/Exiles Scavenger-Mutant | -9/Mines Scavenger-Mutant | -8/Materials Mutant | -7/Factory Commander-Mutant | -7/Storage Commander-Mutant | -7/Recycling Scavenger-Mutant | -5/Factory Mutant | -4/Factory Resources | -11 -10 -10 -10 -9 -8 -7 -7 -7 -5 -4 ----------- Run | Scr Mat Min Exi Min Mat Fac Sto Rec Fac Fac Matter Collected 3760 | 200 687 250 22 104 1370 241 471 125 153 137 Remotely . | . . . . . . . . . . . Salvage Created 6595 | . 871 177 . 213 2297 231 1055 628 623 500 Parts 291 | . 68 7 . 11 128 8 20 4 14 31 Haulers Intercepted 10 | . 2 . . . 4 . 3 . . 1 Recyclers Shooed 10 | . 3 . . 1 3 . . 3 . . Parts Field Recycled . | . . . . . . . . . . . Retrieved Matter . | . . . . . . . . . . . Parts Self-Destructed . | . . . . . . . . . . . Prevented . | . . . . . . . . . . . Kills | -11 -10 -10 -10 -9 -8 -7 -7 -7 -5 -4 ------- Run | Scr Mat Min Exi Min Mat Fac Sto Rec Fac Fac Combat Hostiles Destroyed 94 | . 16 4 . 1 38 3 15 1 13 3 Melee 17 | . . . . . . . 8 . 6 3 Guns 51 | . 16 4 . 1 30 . . . . . Cannons 11 | . . . . . 8 3 . . . . Classes Destroyed 17 | . 7 1 . 1 4 1 2 1 . . Worker 16 | . 2 . . 1 4 2 3 . 1 3 Builder 17 | . 4 . . 1 5 . 1 2 1 3 Tunneler 1 | . . . . . 1 . . . . . Hauler 10 | . 2 . . . 4 . 3 . . 1 Recycler 22 | . 2 1 . 2 5 1 1 9 . 1 Mechanic 2 | . . . . . . . 2 . . . Operator 3 | . . . . . . . 2 . 1 . Drone 1 | . . . . . . . . 1 . . Watcher 3 | . 1 . . . 2 . . . . . Swarmer 25 | . 6 . . . 11 . 4 . 4 . Grunt 42 | . 10 2 . . 17 . 8 . 5 . Duelist 1 | . . . . . 1 . . . . . Protector 2 | . . . . 1 . . 1 . . . Sentry 13 | . . . . . 8 2 2 . 1 . Demolisher 2 | . . 2 . . . . . . . . Hunter 2 | . . . . . 1 . . . 1 . Programmer 6 | . . . . . . 1 . . 2 3 Best Kill Streak 6 | . 3 2 . 3 6 2 6 3 3 3 Combat Bots Only 4 | . 3 2 . 1 4 1 4 1 3 2 Max Kills in Single Turn 3 | . 1 1 . 1 3 1 1 1 1 1 Gunslinging 1 | . . . . . 1 . . . . . Exploded . | . . . . . . . . . . . Melee 1 | . . . . . . . 1 . 1 1 Uniques/NPCs Destroyed . | . . . . . . . . . . . Combat | -11 -10 -10 -10 -9 -8 -7 -7 -7 -5 -4 -------- Run | Scr Mat Min Exi Min Mat Fac Sto Rec Fac Fac Damage Taken 12386 | . 708 486 . . 2304 319 2878 29 2964 2698 Core 3047 | . 103 47 . . 380 79 429 . 842 1167 Absorbed by Shields . | . . . . . . . . . . . Redirected to Shielding 21 | . . . . . . . 21 . . . Core Remaining (%) 42 | 100 . . . 40 30 . . 27 15 . Volleys Fired 324 | . 95 23 . 10 177 13 . . 2 4 Largest 2 | . 2 2 . 2 2 2 . . 1 1 Hottest 140 | . 70 43 . 86 140 96 . . 28 80 Shots Fired 604 | . 187 42 . 20 323 26 . . 2 4 Gun 516 | . 187 42 . 20 265 . . . 2 . Cannon 84 | . . . . . 58 26 . . . . Launcher 4 | . . . . . . . . . . 4 Special . | . . . . . . . . . . . Kinetic 474 | . 147 42 . 10 247 26 . . 2 . Thermal 116 | . 40 . . 10 66 . . . . . Explosive 4 | . . . . . . . . . . 4 Electromagnetic 10 | . . . . . 10 . . . . . Robot Hit Streak 22 | . 8 6 . 9 22 4 . . 2 . Robot Miss Streak 6 | . 6 4 . 3 4 2 . . . . Penetration Max 1 | . . . . . 1 . . . . . Secondary Targets 5 | . 2 . . . 3 . . . . . Max Gunslinging Chain 1 | . 1 . . . 1 . . . . . Shots Hit Robots 535 | . 107 23 8 12 223 12 78 14 45 13 Core Hits 192 | . 40 12 . 5 96 9 11 1 4 14 Critical Kills 4 | . . . . . 2 . . . 2 . Critical Parts Destroyed 26 | . . . . . 1 . 10 4 11 . Critical Strikes 50 | . 2 1 . 1 15 2 11 4 13 1 Burn 7 | . 2 . . 1 4 . . . . . Destroy 4 | . . 1 . . 3 . . . . . Blast 10 | . . . . . 8 2 . . . . Smash 27 | . . . . . . . 10 4 13 . Sever 2 | . . . . . . . 1 . . 1 Melee Attacks 235 | . . . 8 . . 4 105 28 69 21 Impact 169 | . . . . . . 3 79 22 61 4 Slashing 58 | . . . . . . 1 26 6 8 17 Piercing . | . . . . . . . . . . . Sneak Attacks 42 | . . . 7 . . 1 15 11 2 6 Combat Hostiles . | . . . . . . . . . . . Follow-up Attacks 32 | . . . . . . . 22 1 8 1 Damage Inflicted 14973 | . 1345 344 . 193 4039 548 4286 1058 2039 1121 Guns 4960 | . 1345 344 . 193 3053 . . . 25 . Cannons 1267 | . . . . . 940 327 . . . . Explosions 516 | . . . . . 34 127 . . . 355 Melee 8210 | . . . . . . 94 4286 1050 2014 766 Ramming 20 | . . . . . 12 . . 8 . . Kinetic 4851 | . 1064 344 . 62 3029 327 . . 25 . Thermal 1271 | . 281 . . 131 859 . . . . . Explosive 482 | . . . . . . 127 . . . 355 Electromagnetic 139 | . . . . . 139 . . . . . Impact 6615 | . . . . . . 94 3513 1050 1886 72 Slashing 1595 | . . . . . . . 773 . 128 694 Piercing . | . . . . . . . . . . . Highest Corruption 27 | . 3 3 3 3 . 1 27 27 21 7 Average Corruption 8 | . 2 3 3 3 . 1 6 27 17 4 Corruption Purged . | . . . . . . . . . . . Corruption Blocked 15 | . . . . . . . . . 7 8 Effects 189 | . 24 21 7 19 . . 29 50 37 2 Message Errors 57 | . 11 7 2 7 . . 4 13 13 . Matter Fused 34 | . 4 5 4 2 . . 3 10 5 1 Heat Flow Errors 31 | . 3 3 . 5 . . 4 10 5 1 Energy Discharges 19 | . 2 2 . 3 . . 4 7 1 . Parts Rejected 3 | . . . . . . . 3 . . . Data Loss (minor) 24 | . 1 4 1 1 . . 4 5 8 . Data Loss (major) 6 | . 1 . . . . . 3 1 1 . Misfires 2 | . 1 . . . . . . . 1 . Alerts 5 | . . . . 1 . . 3 1 . . Misdirections 6 | . . . . . . . 1 3 2 . Weapon Failures 2 | . 1 . . . . . . . 1 . Overload Shots . | . . . . . . . . . . . Overflow Damage 2987 | . . . . . 51 9 1347 605 759 216 Projectiles 51 | . . . . . 51 . . . . . Explosions 12 | . . . . . . 9 . . . 3 Melee 2924 | . . . . . . . 1347 605 759 213 Knockbacks 44 | . . . . . 7 2 15 6 14 . Impact 33 | . . . . . . . 14 5 14 . Kinetic 8 | . . . . . 6 2 . . . . Secondary 3 | . . . . . 1 . 1 1 . . Self-Inflicted Damage 82 | . . . . . 25 57 . . . . Shots 2 | . . . . . 1 1 . . . . Rammed . | . . . . . . . . . . . Targets Rammed 4 | . . . . . 3 . . 1 . . Kicked 4 | . . . . . 3 . . 1 . . Crushed . | . . . . . . . . . . . Highest Temperature 350 | . 270 167 . 252 350 6 174 278 196 225 Average Temperature 80 | . 117 68 . 55 81 6 60 107 77 40 Received Heat Transfer 2923 | . 240 33 . . 1098 36 969 . 288 259 Effects 3 | . . . . . 2 . . . . 1 Energy Bleed 1 | . . . . . 1 . . . . . Interference 2 | . . . . . 1 . . . . 1 Siege Activations . | . . . . . . . . . . . Robots Corrupted . | . . . . . . . . . . . Combat Hostiles . | . . . . . . . . . . . Parts Fried 55 | . . . . . 1 . 27 13 13 1 Impact Corruptions 93 | . . . . . . . 42 22 28 1 Robots Melted . | . . . . . . . . . . . Combat Hostiles . | . . . . . . . . . . . Parts Melted 8 | . 1 . . 1 6 . . . . . Heat Transferred 3204 | . 869 . . 361 1974 . . . . . Parts Sabotaged . | . . . . . . . . . . . Parts Stolen . | . . . . . . . . . . . Parts Stripped . | . . . . . . . . . . . Power Chain Reactions 1 | . . . . . 1 . . . . . Missiles Intercepted . | . . . . . . . . . . . Alert | -11 -10 -10 -10 -9 -8 -7 -7 -7 -5 -4 ------- Run | Scr Mat Min Exi Min Mat Fac Sto Rec Fac Fac Peak Influence 1412 | . 387 116 . 132 653 524 1322 1168 1412 301 Initial 1355 | . . 61 . . 51 291 90 515 1355 279 Average 383 | . 230 40 . 43 296 317 663 885 885 225 Maximum Alert Level 4 | . 1 . . . 2 2 4 4 4 1 Low Security (%) 32 | . 22 100 . 100 28 18 2 . . 27 Level 1 34 | . 77 . . . 42 75 19 . . 72 Level 2 16 | . . . . . 29 5 41 21 33 . Level 3 12 | . . . . . . . 22 71 44 . Level 4 4 | . . . . . . . 14 6 21 . Level 5 . | . . . . . . . . . . . High Security . | . . . . . . . . . . . Max Security . | . . . . . . . . . . . Squads Dispatched 36 | . 4 . . 1 5 3 12 1 5 5 Investigation 12 | . 2 . . . 3 1 2 . 3 1 Extermination 6 | . . . . . . 1 2 . 2 1 Reinforcement 11 | . 2 . . . 1 . 4 1 . 3 Assault 6 | . . . . 1 . 1 4 . . . Garrison 1 | . . . . . 1 . . . . . Intercept . | . . . . . . . . . . . Searches Triggered 3 | . . . . . 1 . . . 2 . Construction Impeded 2 | . . . . . 1 . . 1 . . Haulers Reinforced 1 | . . . . . . . 1 . . . Active Scanning Responses . | . . . . . . . . . . . Cargo Convoy Interrupts . | . . . . . . . . . . . Stealth | -11 -10 -10 -10 -9 -8 -7 -7 -7 -5 -4 --------- Run | Scr Mat Min Exi Min Mat Fac Sto Rec Fac Fac Distress Signals 17 | . 3 . . . 7 . 6 1 . . Communications Jammed 1 | . . . . . . . . . . 1 Distress Signals 1 | . . . . . . . . . . 1 Times Spotted 250 | . 38 8 . . 62 4 60 27 22 29 Peak Tracking Total 15 | . 5 2 . . 5 1 15 4 5 15 Tactical Retreats 22 | . 3 3 . . 5 . 2 . 4 5 Traps | -11 -10 -10 -10 -9 -8 -7 -7 -7 -5 -4 ------- Run | Scr Mat Min Exi Min Mat Fac Sto Rec Fac Fac Traps Triggered 10 | . 5 1 . . . 1 1 . 1 1 Indirectly . | . . . . . . . . . . . Trap Hack Attempts . | . . . . . . . . . . . Triggered . | . . . . . . . . . . . Disarmed . | . . . . . . . . . . . Reprogrammed . | . . . . . . . . . . . Reused . | . . . . . . . . . . . Traps Extracted . | . . . . . . . . . . . Installed . | . . . . . . . . . . . Triggered 2 | . . . . . . . . . 2 . Machines | -11 -10 -10 -10 -9 -8 -7 -7 -7 -5 -4 ---------- Run | Scr Mat Min Exi Min Mat Fac Sto Rec Fac Fac Machines Disabled 22 | . . . . . 5 5 7 4 1 . Max in Single Turn 3 | . . . . . 1 3 1 1 . . Garrison Access 4 | . . . . . 1 2 1 . . . Machines Sabotaged . | . . . . . . . . . . . Garrisons Compromised . | . . . . . . . . . . . Overloaded Fab Kills . | . . . . . . . . . . . Hacking | -11 -10 -10 -10 -9 -8 -7 -7 -7 -5 -4 --------- Run | Scr Mat Min Exi Min Mat Fac Sto Rec Fac Fac Machines Accessed 52 | . 6 1 4 1 13 3 8 9 6 1 Terminals 31 | . 5 . . . 9 2 6 5 4 . Fabricators 2 | . . . . . . . . . 1 1 Repair Stations . | . . . . . . . . . . . Recycling Units 7 | . 1 . . . 1 . 1 4 . . Scanalyzers 3 | . . . . . 2 . . . 1 . Garrison Access 3 | . . . . . 1 1 1 . . . Total Hacks 141 | . 14 1 31 1 33 6 16 18 20 1 Successful 94 | . 8 1 31 1 23 2 7 9 11 1 Failed 45 | . 5 . . . 9 4 9 9 9 . Catastrophic 14 | . 1 . . . 1 3 4 2 3 . Database Lockouts 2 | . 1 . . . 1 . . . . . Manual 59 | . 6 . . . 18 2 6 16 10 1 Terminals 83 | . 13 . . . 26 4 13 13 14 . Fabricators 4 | . . . . . . . . . 3 1 Repair Stations . | . . . . . . . . . . . Recycling Units 9 | . 1 . . . 1 . 2 5 . . Scanalyzers 8 | . . . . . 5 . . . 3 . Garrison Access 4 | . . . . . 1 2 1 . . . Terminal Hacks 65 | . 7 1 31 1 11 . 5 2 7 . Record 32 | . . . 31 . 1 . . . . . Robot Analysis 4 | . 3 . . . 1 . . . . . Prototype ID Bank 1 | . . . . . 1 . . . . . Open Door 4 | . . 1 . 1 . . 2 . . . Fabricator Index 1 | . . . . . . . . . 1 . Recycling Unit Index 1 | . . . . . . . . . 1 . Scanalyzer Index 1 | . . . . . 1 . . . . . Alert Level 8 | . 1 . . . 3 . 2 . 2 . Unreport Threat 7 | . . . . . 2 . 1 1 3 . Locate Traps 1 | . 1 . . . . . . . . . Hauler Manifests 2 | . 1 . . . 1 . . . . . Registered Components 1 | . 1 . . . . . . . . . Zone Layout 2 | . . . . . 1 . . 1 . . Fabricator Hacks 1 | . . . . . . . . . 1 . Network Status 1 | . . . . . . . . . 1 . Repair Station Hacks . | . . . . . . . . . . . Recycling Unit Hacks . | . . . . . . . . . . . Scanalyzer 5 | . . . . . 3 . . . 2 . Insert Component 3 | . . . . . 2 . . . 1 . Analyze 2 | . . . . . 1 . . . 1 . Garrison Access Hacks 3 | . . . . . 1 1 1 . . . Seal Access 3 | . . . . . 1 1 1 . . . Unauthorized Hacks 20 | . 1 . . . 8 1 1 7 1 1 Terminals 12 | . . . . . 7 1 1 2 1 . Track 2 | . . . . . 2 . . . . . Botnet 9 | . . . . . 4 1 1 2 1 . Operators 1 | . . . . . 1 . . . . . Fabricators 1 | . . . . . . . . . . 1 Overload 1 | . . . . . . . . . . 1 Repair Stations . | . . . . . . . . . . . Recycling Units 7 | . 1 . . . 1 . . 5 . . Mask 1 | . . . . . . . . 1 . . Tunnel 6 | . 1 . . . 1 . . 4 . . Scanalyzers . | . . . . . . . . . . . Garrison Access . | . . . . . . . . . . . Data Cores Recovered 1 | . . . . . . . . . 1 . Used . | . . . . . . . . . . . Hacking Detections 32 | . 3 . . . 10 3 5 5 6 . Full Trace Events 9 | . 1 . . . 2 1 1 2 2 . Feedback Events . | . . . . . . . . . . . Feedback Blocked . | . . . . . . . . . . . Robot Schematics Acquired . | . . . . . . . . . . . Robots Built . | . . . . . . . . . . . Authchips . | . . . . . . . . . . . Time . | . . . . . . . . . . . Total Robot Build Rating . | . . . . . . . . . . . Part Schematics Acquired 1 | . . . . . . . . . 1 . Parts Built . | . . . . . . . . . . . Authchips . | . . . . . . . . . . . Time . | . . . . . . . . . . . Total Part Build Rating . | . . . . . . . . . . . Parts Repaired . | . . . . . . . . . . . Time . | . . . . . . . . . . . Parts Recycled . | . . . . . . . . . . . Recycled Matter . | . . . . . . . . . . . Retrieved Matter . | . . . . . . . . . . . Retrieved Components . | . . . . . . . . . . . Parts Scanalyzed 1 | . . . . . 1 . . . . . Part Schematics Acquired 1 | . . . . . . . . . 1 . Parts Damaged 1 | . . . . . . . . . 1 . Bothacking | -11 -10 -10 -10 -9 -8 -7 -7 -7 -5 -4 ------------ Run | Scr Mat Min Exi Min Mat Fac Sto Rec Fac Fac Used RIF Installer . | . . . . . . . . . . . Robots Hacked 6 | . . . 6 . . . . . . . Non-combat 3 | . . . 3 . . . . . . . Combat 3 | . . . 3 . . . . . . . Robot Hacks Applied 6 | . . . 6 . . . . . . . parse_system 6 | . . . 6 . . . . . . . Relay Couplers Released 2 | . . . . . . 2 . . . . Machine Destruction 2 | . . . . . . 2 . . . . Fabnet Peak Effective % . | . . . . . . . . . . . Robots Rewired 16 | . . . . . . . 1 15 . . Allies Hacked 1 | . . . . . . . 1 . . . Hacks Repelled . | . . . . . . . . . . . Allies | -11 -10 -10 -10 -9 -8 -7 -7 -7 -5 -4 -------- Run | Scr Mat Min Exi Min Mat Fac Sto Rec Fac Fac Total Allies 36 | . . . . 6 . . 15 15 . . Largest Group 12 | . . . . 6 6 . 11 12 5 . Highest-Rated Group 273 | . . . . 113 112 . 273 262 136 . Highest-Rated Ally 100 | . . . . 31 31 . 100 34 34 . Total Orders 3 | . . . . . . . 3 . . . EXPLORE 3 | . . . . . . . 3 . . . Ally Attacks 359 | . . . . 35 22 . 188 112 2 . Total Damage 9177 | . . . . 459 264 . 4717 3643 94 . Kills 118 | . . . . 4 3 . 48 60 3 . Allies Corrupted . | . . . . . . . . . . . Allies Melted . | . . . . . . . . . . . Intel | -11 -10 -10 -10 -9 -8 -7 -7 -7 -5 -4 ------- Run | Scr Mat Min Exi Min Mat Fac Sto Rec Fac Fac Robot Analysis Total 4 | . 3 . . . 1 . . . . . Derelict Logs Recovered 2 | . . 1 . 1 . . . . . . Drone Launches 15 | . . . . . . . 15 . . . Drone Recoveries 1 | . . . . . . . 1 . . . Exploration | -11 -10 -10 -10 -9 -8 -7 -7 -7 -5 -4 ------------- Run | Scr Mat Min Exi Min Mat Fac Sto Rec Fac Fac Turns Passed 11585 | . 1678 1344 410 786 2188 986 1497 1013 868 815 Spaces Moved 7135 | 1 847 851 491 757 1324 637 861 588 366 412 Core 151 | . . . . . . . . . 6 145 Treads 90 | . 7 . . . . . . . 83 . Legs 4488 | 1 840 502 . . 874 637 770 588 276 . Wheels 2362 | . . 349 491 757 450 . 91 . . 224 Hover 44 | . . . . . . . . . 1 43 Flight . | . . . . . . . . . . . Fastest Speed 50 | 120 120 80 80 95 85 122 110 120 120 50 Average Speed 127 | 120 155 145 81 95 112 142 127 121 182 130 Slowest Speed 650 | 120 190 190 95 95 260 193 330 122 650 550 Overloaded Moves . | . . . . . . . . . . . Propulsion Burnouts . | . . . . . . . . . . . Robots Hopped . | . . . . . . . . . . . Cave-ins Triggered . | . . . . . . . . . . . Exploration Rate (%) 64 | 2 98 99 92 98 87 16 97 99 7 15 Regions Visited 10 Branch Regions 5 Pre-discovered Areas 7 | . 1 . 1 . 1 . . 4 . . Known Exits Taken 1 | . . . . . 1 . . . . . Unknown Exits Taken 9 | 1 1 1 1 1 . 1 1 1 1 . Scrap Searched 3 | . . 1 . 2 . . . . . . Spaces Dug 15 | . . . . . 4 5 1 2 . 3 Terrain Destroyed 120 | . . . . . 34 46 1 2 . 37 Melee 8 | . . . . . . 2 1 2 . 3 Projectile 36 | . . . . . 30 6 . . . . AOE 76 | . . . . . 4 38 . . . 34 Terrain Rammed . | . . . . . . . . . . . Walls Destroyed . | . . . . . . . . . . . Machines Disabled . | . . . . . . . . . . . Actions | -11 -10 -10 -10 -9 -8 -7 -7 -7 -5 -4 --------- Run | Scr Mat Min Exi Min Mat Fac Sto Rec Fac Fac Total 8724 | . 1025 912 502 807 1712 684 1117 851 458 656 Wait 528 | . 39 19 . 25 87 3 90 68 14 183 Move 7125 | . 846 850 490 756 1323 636 860 587 365 412 Hop . | . . . . . . . . . . . Pick Up 54 | . 6 2 . 4 14 10 9 1 2 6 Fast Attach 106 | . 7 7 . 3 26 4 29 1 12 17 Attach 20 | . 3 1 1 . 6 2 2 . 3 2 Detach 7 | . 2 1 . 1 . 1 . . 1 1 Swap 70 | . 13 3 2 1 29 5 10 4 . 3 Drop 127 | . 14 6 1 7 47 7 30 4 . 11 Fire 324 | . 95 23 . 10 177 13 . . 2 4 Melee 178 | . . . 8 . . 3 78 18 54 17 Ram . | . . . . . . . . . . . Kick 4 | . . . . . 3 . . 1 . . Crush . | . . . . . . . . . . . Escape Stasis 5 | . . . . . . . . . 5 . Rewire 170 | . . . . . . . 3 167 . . Trap . | . . . . . . . . . . . Miscellaneous 6 | . . . . . . . 6 . . . Route ------- -11/Scrapyard -10/Materials (discovered 4 exits: [*Mat x3] / *Min) -10/Mines (discovered 3 exits: [*Mat x2] / *Exi) -10/Exiles -9/Mines (discovered 2 exits: *Mat x2) -8/Materials (discovered 3 exits: *Fac x3) -7/Factory (discovered 2 exits: *Sto / [*Low]) -7/Storage (discovered 2 exits: [*Fac] / *Rec) -7/Recycling -5/Factory -4/Factory History --------- Turn | Location | Event 1 | -11/Scrapyard | Discovered new exit (range 0) 1 | -11/Scrapyard | Entered Materials 287 | -10/Materials | Discovered new exit (range 8) 335 | -10/Materials | Build established: Mutant 481 | -10/Materials | Discovered new exit (range 16) 529 | -10/Materials | Central database locked down 689 | -10/Materials | Discovered new exit (range 7) 745 | -10/Materials | Discovered new exit (range 10) 1679 | -10/Materials | Entered Mines 1923 | -10/Mines | Learned Materials terminal intel 1937 | -10/Mines | Discovered new exit (range 16) 2103 | -10/Mines | Joined a pair of Derelicts in attacking an 0b10 outpost 2363 | -10/Mines | Assembled infested the area 2506 | -10/Mines | Core integrity fell below 50% 2542 | -10/Mines | Lost 4 parts (1p1n1u1w) 2817 | -10/Mines | Discovered new exit (range 4) 2826 | -10/Mines | Met a Derelict who couldn't figure out how to use a Trap Extractor 2883 | -10/Mines | Deemed a non-threat by the Exiles lab entrance 2884 | -10/Mines | Discovered new exit (range 5) 3023 | -10/Mines | Entered Exiles 3047 | -10/Exiles | Met 8R-AWN 3066 | -10/Exiles | Met EX-HEX 3106 | -10/Exiles | Met EX-BIN 3233 | -10/Exiles | Met EX-DEC 3264 | -10/Exiles | Visited The Gauntlet 3378 | -10/Exiles | Learned location of Zion (-7) 3420 | -10/Exiles | Discovered new exit (range 14) 3433 | -10/Exiles | Entered Mines 3439 | -9/Mines | Met a Derelict bent on vengeance 3472 | -9/Mines | Discovered new exit (range 9) 3529 | -9/Mines | Learned location of 1 exit from Materials 3709 | -9/Mines | Assisted by bots powering up and referring to "LRC-V3" 3719 | -9/Mines | Build established: Scavenger-Mutant 3833 | -9/Mines | Found a damaged Exp. Sensor Array with a note attached 3840 | -9/Mines | Found Prototype Device 3925 | -9/Mines | Met a Derelict testing a Signal Generator 4155 | -9/Mines | Found the Drone Emporium 4159 | -9/Mines | Found Prototype Device 4159 | -9/Mines | Identified Thief Drone Bay 4194 | -9/Mines | Discovered new exit (range 10) 4219 | -9/Mines | Entered Materials 4219 | -8/Materials | Accompanied by 6 allies 4219 | -8/Materials | Evolved 4 slots: Propulsion x2, Utility x2 4220 | -8/Materials | Identified exit to Factory 4221 | -8/Materials | Loaded intel: 12 terminal locations 4224 | -8/Materials | Led the pair of lost Derelicts to an unsafe place 4667 | -8/Materials | Discovered exit to Factory (range 16) 4858 | -8/Materials | Lost 7 parts (1p3n1u2w) 5038 | -8/Materials | Core integrity fell below 50% 5264 | -8/Materials | Central database locked down 5431 | -8/Materials | Identified Exp. Sensor Array 5437 | -8/Materials | Garrison activated, responded to threat 5664 | -8/Materials | Discovered exit to Factory (range 3) 6219 | -8/Materials | Search patrols dispatched 6407 | -8/Materials | Entered Factory 6407 | -7/Factory | Evolved 2 slots: Utility x1, Weapon x1 6873 | -7/Factory | Discovered new exit (range 12) 7077 | -7/Factory | Build established: Mutant 7360 | -7/Factory | Discovered new exit (range 16) 7393 | -7/Factory | Entered Storage 7722 | -7/Storage | Assisted by bots powering up and referring to "LRC-V3" 7739 | -7/Storage | Found Exp. Targeting Computer 7750 | -7/Storage | Met 01-MTF 8028 | -7/Storage | Build established: Commander-Mutant 8193 | -7/Storage | First assault squad dispatched 8211 | -7/Storage | Used back door to open Recycling access 8211 | -7/Storage | Discovered new exit (range 4) 8275 | -7/Storage | System corruption reached 10% 8428 | -7/Storage | Discovered new exit (range 15) 8687 | -7/Storage | Core integrity fell below 50% 8726 | -7/Storage | Lost 7 parts (5n2u) 8890 | -7/Storage | Entered Recycling 8890 | -7/Recycling | Accompanied by 2 allies (01-MTF) 8895 | -7/Recycling | 01-MTF left 8926 | -7/Recycling | Spotter reported a threat 8926 | -7/Recycling | Spotter reported a threat 8928 | -7/Recycling | Spotter reported a threat 8929 | -7/Recycling | Spotter reported a threat 8934 | -7/Recycling | Spotter reported a threat 8938 | -7/Recycling | Spotter reported a threat 8958 | -7/Recycling | Spotter reported a threat 8968 | -7/Recycling | Spotter reported a threat 8985 | -7/Recycling | Build established: Scavenger-Mutant 9010 | -7/Recycling | Spotter reported a threat 9010 | -7/Recycling | Spotter reported a threat 9051 | -7/Recycling | Spotter reported a threat 9051 | -7/Recycling | Spotter reported a threat 9052 | -7/Recycling | Spotter reported a threat 9113 | -7/Recycling | Spotter reported a threat 9139 | -7/Recycling | Spotter reported a threat 9141 | -7/Recycling | Spotter reported a threat 9199 | -7/Recycling | Spotter reported a threat 9202 | -7/Recycling | Spotter reported a threat 9215 | -7/Recycling | Spotter reported a threat 9244 | -7/Recycling | Spotter reported a threat 9245 | -7/Recycling | Spotter reported a threat 9245 | -7/Recycling | Spotter reported a threat 9252 | -7/Recycling | Spotter reported a threat 9295 | -7/Recycling | Spotter reported a threat 9295 | -7/Recycling | Spotter reported a threat 9296 | -7/Recycling | Spotter reported a threat 9358 | -7/Recycling | Spotter reported a threat 9358 | -7/Recycling | Spotter reported a threat 9358 | -7/Recycling | Spotter reported a threat 9372 | -7/Recycling | Spotter reported a threat 9402 | -7/Recycling | Spotter reported a threat 9411 | -7/Recycling | Spotter reported a threat 9413 | -7/Recycling | Spotter reported a threat 9440 | -7/Recycling | Spotter reported a threat 9440 | -7/Recycling | Spotter reported a threat 9440 | -7/Recycling | Spotter reported a threat 9450 | -7/Recycling | Discovered new exit (range 19) 9472 | -7/Recycling | Spotter reported a threat 9487 | -7/Recycling | Spotter reported a threat 9511 | -7/Recycling | Build established: Commander-Mutant 9554 | -7/Recycling | Spotter reported a threat 9560 | -7/Recycling | Spotter reported a threat 9560 | -7/Recycling | Spotter reported a threat 9568 | -7/Recycling | Spotter reported a threat 9607 | -7/Recycling | Spotter reported a threat 9620 | -7/Recycling | Spotter reported a threat 9621 | -7/Recycling | Spotter reported a threat 9638 | -7/Recycling | Spotter reported a threat 9686 | -7/Recycling | Spotter reported a threat 9737 | -7/Recycling | Spotter reported a threat 9737 | -7/Recycling | Spotter reported a threat 9751 | -7/Recycling | Spotter reported a threat 9903 | -7/Recycling | Entered Factory 9903 | -5/Factory | Accompanied by 5 allies 9903 | -5/Factory | Evolved 4 slots: Utility x4 10034 | -5/Factory | Build established: Scavenger-Mutant 10060 | -5/Factory | System corruption reached 10% 10075 | -5/Factory | Lost 9 parts (5n2u2w) 10203 | -5/Factory | Search patrols dispatched 10387 | -5/Factory | Discovered new exit (range 19) 10503 | -5/Factory | Search patrols dispatched 10758 | -5/Factory | Core integrity fell below 50% 10771 | -5/Factory | Entered another Factory area 10771 | -4/Factory | Evolved 2 slots: Propulsion x2 10789 | -4/Factory | Lost 9 parts (1p2n4u2w) 11030 | -4/Factory | Build established: Mutant 11242 | -4/Factory | Spotted B-86 Titan 11299 | -4/Factory | Found Prototype Launcher 11299 | -4/Factory | Identified Mni. Smartbomb Launcher 11302 | -4/Factory | Found Mni. Smartbomb Launcher 11306 | -4/Factory | Found Mni. Smartbomb Launcher 11309 | -4/Factory | Found Mni. Smartbomb Launcher 11312 | -4/Factory | Found Mni. Smartbomb Launcher 11440 | -4/Factory | Lost 4 parts (2n1u1w) 11527 | -4/Factory | Core integrity fell below 50% 11532 | -4/Factory | Found Imp. Powered Armor 11573 | -4/Factory | Core integrity fell below 20% 11580 | -4/Factory | Lost 7 parts (1p3n2u1w) 11586 | -4/Factory | Destroyed by G-67 Veteran with Field Laser Last Messages --------------- 11549_ Dropped Cooling System. 11549_ U-05 Engineer lays Concrete. 11549_ Imp. Powered Armor destroyed. 11550_ U-05 Engineer lays Concrete. 11555_ The unstable cave ceiling collapses. 11555_ U-05 Engineer builds a Wall. 11555_ U-05 Engineer lays Concrete. 11557_ U-05 Engineer builds a Wall. 11562_ Slug penetrates Fusion Modulator. 11567_ System corrupted: Heat flow error (+268). 11568_ Overheating: System interference. 11568_ Transport Network Coupler temporarily disabled. 11578_ K-01 Serf cleans the Fabricator. 11583_ Cld. Gravmag System destroyed. 11584_ Connecting with Fabricator... 11584_ Current location identified: Factory >>Force(Overload) EM_IMPRINTER_OVERLOAD 11584_ ALERT: Suspicious activity at Fabricator F002. Dispatching Investigation squad. Map ----- +----------------------------------------------------+ | ?????????????????????????????????????????????????? | | ?????????????????????????????????????????????????? | | ?????????????????????????????????????????????????? | | ?????????????????????????????????????????????????? | | ?????????????????????????????????????????????????? | | ?????????????????????????????????????????????????? | | ??????????????????????????? ??? ????????????????? | | ?????????????????????????"" """ #???????????????? | | ?????????????????????????"" """ #???????????????? | | ????????????????????????? #???????????????? | | ????????????????????????? #???????????????? | | ?????????????????????????# #???????????????? | | ?????????????????????????#gg #???????????????? | | ?????????????????????????# g #???????????????? | | ?????????????????????????# #???????????????? | | ?????????????????????????# #???????????????? | | ?????????????????????????# #???????????????? | | ?????????????????????????# #???????????????? | | ?????????????????????????# #???????????????? | | ?????????????############# #???????????????? | | ???????????? = #???????????????? | | ????????????? #???????????????? | | ????????????""""""""" k""#???????????????? | | ????????????? ""#???????????????? | | ????????????""""""""" F"#???????????????? | | ?????????# @ ""####????????????? | | ????????????""""""""" #????????????? | | ??????????? #????????????? | | ??????????? #????????????? | | ????????? ##### #????????????? | | ???????? ????# #????????????? | | ???????? ????# #????????????? | | ????????###############?????# #????????????? | | ????????????????????????????# #????????????? | | ????????????????????????????# #????????????? | | ????????????????????????????# #????????????? | | ????????????????????????????# s#????????????? | | ????????????????????????????# #????????????? | | ????????????????????????????+ ##+######????? | | ????????????????????????????# ## +????? | | ?????????????????????????#### ## #??????? | | ?????????????????????????# ## #??????? | | ?????????????????????????# #?###### | | ?????????????????????????# #?# | | ?????????????????????????# ### | | ?????????????????????????# """ """ """ # """ | | ?????????????????????????# """ """ """ + """ | | ?????????????????????????# """ """ """ # """ | | ??????????????##########?# #= | | ??????????????# ## """ """ """ # """ | +----------------------------------------------------+ Best States ------------- Heat Dissipation 81 Energy Generation 18 Energy Capacity 310 Matter Stores 300 Matter Capacity 300 Sight Range 20 Terrain Scan Density 10 Jamming Range 16 Corruption Block 15 Armor Coverage 400 Resistance: EM 25 Weapon Shielding 66 Evasion (%) 55 Targeting Accuracy 8 Melee Accuracy 11 Recoil Reduction 1 Force Boost 20 Authchip Count 1 Item Schematics ----------------- Exp. Sensor Array | -5/Factory | Scanalyzed Robot Schematics ------------------ None Fabricated ------------ Nothing Alien Tech Used ----------------- None Achievements -------------- None Challenges ------------ None Game ------ Seed AblativeTransmissionPurifier Manual? 0 Play Time 01:31:26 Cumulative 323.9 hours Start 2022.06.16 @ 20:24:01 End 2022.06.17 @ 10:20:32 Sessions 1 Manual Loads 0 Difficulty Rogue Special Mode None Game No. 403 Rogue 402 Adventurer 0 Explorer 1 Win Type - Total 8 Types 6/0/0/2/0/0/0/0/0 Lore% 70 Gallery% 82 Achievement% 60 Wizard Run 0 Options --------- ASCII 0 Keyboard 1 Movement Vi Keybinds 0 Fullscreen 1 Font 18/SmallcapsGlow Map View 76x50 Tactical HUD 1 Map Filters NONE Filters NONE Steam 1 RUN: 96439622-b717-4b33-9a50-4561b7c3ad24